fUSD/lending_fUSD_20241227
["ID","MTS","AMOUNT","RATE_DAILY","PERIOD"]
[346850515,1735325443494,-500.0,0.00010477,2]
[346850516,1735325443505,-500.0,0.00010477,2]
[346850517,1735325443515,-1872.21,0.00010477,2]
[346850518,1735325443526,-500.0,0.00010477,2]
[346850519,1735325443538,-728.93,0.00010477,2]
[346850520,1735325443548,-1665.71,0.00010477,2]
[346850521,1735325443559,-500.0,0.00010477,2]
[346850522,1735325443570,-897.86,0.00010477,2]
[346850523,1735325443580,-538.67,0.00010477,2]
[346850524,1735325443591,-836.26,0.00010477,2]
[346850525,1735325443601,-1097.54,0.00010477,2]
[346850526,1735325443612,-1872.91,0.00010477,2]
[346850527,1735325443623,-701.86,0.00010477,2]
[346850528,1735325443634,-1391.69,0.00010477,2]
[346850529,1735325443644,-500.0,0.00010477,2]
[346850530,1735325443655,-1490.81,0.00010477,2]
[346850531,1735325443667,-826.87,0.00010478,2]
[346850532,1735325443677,-500.0,0.00010478,2]
[346850533,1735325443687,-500.0,0.00010478,2]
[346850534,1735325443698,-500.0,0.00010478,2]
[346850535,1735325443708,-500.0,0.00010478,2]
[346850536,1735325443718,-500.0,0.00010478,2]
[346850537,1735325443729,-500.0,0.00010478,2]
[346850538,1735325443739,-500.0,0.00010478,2]
[346850539,1735325443750,-500.0,0.00010478,2]
[346850540,1735325443760,-500.0,0.00010478,2]
[346850541,1735325443770,-500.0,0.00010478,2]
[346850542,1735325443781,-500.0,0.00010478,2]
[346850543,1735325443791,-500.0,0.00010478,2]
[346850544,1735325443801,-500.0,0.00010478,2]
[346850545,1735325443812,-500.0,0.00010478,2]
[346850546,1735325443823,-500.0,0.00010478,2]
[346850547,1735325443834,-500.0,0.00010478,2]
[346850548,1735325443844,-500.0,0.00010478,2]
[346850549,1735325443855,-500.0,0.00010478,2]
[346850550,1735325443866,-500.0,0.00010478,2]
[346850555,1735325444298,-500.0,0.00010478,2]
[346850556,1735325444331,-500.0,0.00010478,2]
[346850557,1735325444350,-500.0,0.00010478,2]
[346850558,1735325444361,-500.0,0.00010478,2]
[346850559,1735325444371,-500.0,0.00010478,2]
[346850560,1735325444380,-500.0,0.00010478,2]
[346850561,1735325444389,-500.0,0.00010478,2]
[346850562,1735325444398,-500.0,0.00010478,2]
[346850563,1735325444407,-500.0,0.00010478,2]
[346850564,1735325444417,-500.0,0.00010478,2]
[346850565,1735325444426,-500.0,0.00010478,2]
[346850566,1735325444436,-500.0,0.00010478,2]
[346850567,1735325444446,-500.0,0.00010478,2]
[346850568,1735325444455,-500.0,0.00010478,2]
[346850569,1735325444464,-500.0,0.00010478,2]
[346850570,1735325444473,-500.0,0.00010478,2]
[346850571,1735325444482,-585.6,0.00010478,2]
[346850572,1735325444492,-500.0,0.00010478,2]
[346850573,1735325444501,-372.9,0.00010478,2]
[346850574,1735325444511,-500.0,0.00010478,2]
[346850575,1735325444521,-500.0,0.00010478,2]
[346850576,1735325444531,-500.0,0.00010478,2]
[346850577,1735325444541,-500.0,0.00010478,2]
[346850578,1735325444550,-500.0,0.00010478,2]
[346850579,1735325444560,-584.0,0.00010478,2]
[346850580,1735325444570,-500.0,0.00010478,2]
[346850581,1735325444579,-500.0,0.00010478,2]
[346850583,1735325444588,-500.0,0.00010478,2]
[346850584,1735325444599,-500.0,0.00010478,2]
[346850586,1735325444608,-500.0,0.00010478,2]
[346850587,1735325444617,-513.43610081,0.00010478,2]
[346850588,1735325444627,-500.0,0.00010478,2]
[346850590,1735325444636,-753.75,0.00010478,2]
[346850592,1735325444646,-500.0,0.00010478,2]
[346850593,1735325444655,-500.0,0.00010478,2]
[346850595,1735325444665,-737.47,0.00010478,2]
[346850597,1735325444674,-500.0,0.00010478,2]
[346850599,1735325444683,-804.04,0.00010478,2]
[346850601,1735325444693,-500.0,0.00010478,2]
[346850602,1735325444703,-500.0,0.00010478,2]
[346850604,1735325444712,-500.0,0.00010478,2]
[346850605,1735325444722,-500.0,0.00010478,2]
[346850606,1735325444731,-500.0,0.00010478,2]
[346850608,1735325444741,-500.0,0.00010478,2]
[346850609,1735325444751,-531.39,0.00010478,2]
[346850610,1735325444760,-500.0,0.00010478,2]
[346850612,1735325444769,-500.0,0.00010478,2]
[346850613,1735325444779,-500.0,0.00010478,2]
[346850614,1735325444789,-500.0,0.00010478,2]
[346850616,1735325444799,-500.0,0.00010478,2]
[346850618,1735325444809,-500.0,0.00010478,2]
[346850619,1735325444819,-500.0,0.00010478,2]
[346850620,1735325444829,-500.0,0.00010478,2]
[346850621,1735325444838,-500.0,0.00010478,2]
[346850622,1735325444847,-500.0,0.00010478,2]
[346850623,1735325444857,-500.0,0.00010478,2]
[346850624,1735325444866,-500.0,0.00010478,2]
[346850625,1735325444875,-500.0,0.00010478,2]
[346850626,1735325444885,-500.0,0.00010478,2]
[346850627,1735325444895,-500.17,0.00010478,2]
[346850628,1735325444904,-705.09,0.00010478,2]
[346850629,1735325444913,-500.0,0.00010478,2]
[346850630,1735325444923,-500.0,0.00010478,2]
[346850631,1735325444932,-500.0,0.00010478,2]
[346850632,1735325444942,-500.0,0.00010478,2]
[346850633,1735325444951,-500.0,0.00010478,2]
[346850634,1735325444961,-500.0,0.00010478,2]
[346850635,1735325444971,-500.0,0.00010478,2]
[346850636,1735325444980,-500.0,0.00010478,2]
[346850637,1735325444990,-500.0,0.00010478,2]
[346850638,1735325445001,-500.0,0.00010478,2]
[346850639,1735325445011,-500.0,0.00010478,2]
[346850641,1735325445020,-500.0,0.00010478,2]
[346850643,1735325445029,-670.1,0.00010478,2]
[346850644,1735325445040,-500.0,0.00010478,2]
[346850645,1735325445050,-298.34467172,0.00010478,2]
[346850647,1735325445059,-500.0,0.00010478,2]
[346850648,1735325445069,-501.14325651,0.00010478,2]
[346850649,1735325445078,-500.0,0.00010478,2]
[346850651,1735325445087,-500.0,0.00010478,2]
[346850652,1735325445097,-500.0,0.00010478,2]
[346850653,1735325445107,-500.0,0.00010478,2]
[346850654,1735325445117,-500.0,0.00010478,2]
[346850655,1735325445127,-500.0,0.00010478,2]
[346850656,1735325445136,-500.0,0.00010478,2]
[346850657,1735325445146,-500.0,0.00010478,2]
[346850658,1735325445155,-500.0,0.00010478,2]
[346850659,1735325445165,-500.0,0.00010478,2]
[346850660,1735325445175,-500.0,0.00010478,2]
[346850661,1735325445184,-500.0,0.00010478,2]
[346850662,1735325445194,-947.71,0.00010478,2]
[346850663,1735325445203,-640.73,0.00010478,2]
[346850664,1735325445214,-524.73440355,0.00010478,2]
[346850665,1735325445224,-665.78,0.00010478,2]
[346850666,1735325445234,-651.66,0.00010478,2]
[346850667,1735325445243,-500.0,0.00010478,2]
[346850669,1735325445253,-500.0,0.00010478,2]
[346850670,1735325445263,-500.0,0.00010478,2]
[346850671,1735325445273,-539.73,0.00010478,2]
[346850672,1735325445287,-500.0,0.00010478,2]
[346850673,1735325445297,-500.0,0.00010478,2]
[346850674,1735325445306,-500.0,0.00010478,2]
[346850675,1735325445316,-1314.11,0.00010478,2]
[346850676,1735325445327,-500.0,0.00010478,2]
[346850677,1735325445337,-500.0,0.00010478,2]
[346850678,1735325445347,-1422.15,0.00010478,2]
[346850679,1735325445357,-500.0,0.00010478,2]
[346850680,1735325445368,-500.0,0.00010478,2]
[346850681,1735325445378,-500.0,0.00010478,2]
[346850682,1735325445387,-763.8,0.00010478,2]
[346850683,1735325445396,-500.0,0.00010478,2]
[346850684,1735325445404,-533.46,0.00010478,2]
[346850685,1735325445413,-500.0,0.00010478,2]
[346850686,1735325445423,-500.0,0.00010478,2]
[346850687,1735325445432,-1112.93,0.00010478,2]
[346850688,1735325445442,-500.0,0.00010478,2]
[346850689,1735325445452,-500.0,0.00010478,2]
[346850690,1735325445461,-1068.87,0.00010478,2]
[346850691,1735325445471,-1020.19,0.00010478,2]
[346850692,1735325445481,-500.0,0.00010478,2]
[346850693,1735325445490,-500.0,0.00010478,2]
[346850694,1735325445500,-500.0,0.00010478,2]
[346850695,1735325445510,-500.0,0.00010478,2]
[346850696,1735325445519,-500.0,0.00010478,2]
[346850697,1735325445529,-500.0,0.00010478,2]
[346850698,1735325445539,-500.0,0.00010478,2]
[346850699,1735325445549,-531.48,0.00010478,2]
[346850700,1735325445559,-500.0,0.00010478,2]
[346850701,1735325445568,-500.0,0.00010478,2]
[346850702,1735325445579,-500.0,0.00010478,2]
[346850703,1735325445588,-500.0,0.00010478,2]
[346850704,1735325445597,-500.0,0.00010478,2]
[346850705,1735325445606,-500.0,0.00010478,2]
[346850706,1735325445616,-599.29,0.00010478,2]
[346850707,1735325445625,-778.19,0.00010478,2]
[346850708,1735325445636,-500.0,0.00010478,2]
[346850710,1735325445645,-500.0,0.00010478,2]
[346850712,1735325445655,-500.0,0.00010478,2]
[346850713,1735325445664,-500.0,0.00010478,2]
[346850715,1735325445674,-500.0,0.00010478,2]
[346850717,1735325445683,-850.2,0.00010478,2]
[346850718,1735325445693,-591.55,0.00010478,2]
[346850719,1735325445702,-618.32631814,0.00010478,2]
[346850720,1735325445711,-500.0,0.00010478,2]
[346850721,1735325445721,-500.0,0.00010478,2]
[346850722,1735325445730,-500.0,0.00010478,2]
[346850723,1735325445740,-500.0,0.00010478,2]
[346850724,1735325445750,-500.0,0.00010478,2]
[346850725,1735325445760,-607.78,0.00010478,2]
[346850726,1735325445769,-500.0,0.00010478,2]
[346850727,1735325445779,-500.0,0.00010478,2]
[346850728,1735325445789,-500.0,0.00010478,2]
[346850730,1735325445798,-836.53,0.00010478,2]
[346850732,1735325445808,-500.0,0.00010478,2]
[346850733,1735325445817,-626.39,0.00010478,2]
[346850734,1735325445827,-500.0,0.00010478,2]
[346850735,1735325445836,-500.0,0.00010478,2]
[346850736,1735325445846,-500.0,0.00010478,2]
[346850737,1735325445856,-843.44,0.00010478,2]
[346850738,1735325445866,-571.62,0.00010478,2]
[346850739,1735325445875,-500.0,0.00010478,2]
[346850740,1735325445884,-500.0,0.00010478,2]
[346850741,1735325445893,-1146.3,0.00010478,2]
[346850743,1735325445903,-500.0,0.00010478,2]
[346850744,1735325445912,-523.95,0.00010478,2]
[346850745,1735325445922,-500.0,0.00010478,2]
[346850746,1735325445931,-500.0,0.00010478,2]
[346850747,1735325445940,-565.73,0.00010478,2]
[346850748,1735325445950,-500.0,0.00010478,2]
[346850749,1735325445959,-500.0,0.00010478,2]
[346850750,1735325445969,-500.0,0.00010478,2]
[346850751,1735325445978,-830.47,0.00010478,2]
[346850752,1735325445988,-500.0,0.00010478,2]
[346850753,1735325445997,-500.0,0.00010478,2]
[346850754,1735325446007,-500.0,0.00010478,2]
[346850755,1735325446016,-500.0,0.00010478,2]
[346850756,1735325446025,-644.3,0.00010478,2]
[346850757,1735325446035,-500.0,0.00010478,2]
[346850758,1735325446044,-1782.94,0.00010478,2]
[346850759,1735325446054,-500.0,0.00010478,2]
[346850760,1735325446063,-525.05,0.00010478,2]
[346850761,1735325446072,-622.44,0.00010478,2]
[346850762,1735325446082,-500.0,0.00010478,2]
[346850763,1735325446091,-707.51,0.00010478,2]
[346850764,1735325446100,-500.0,0.00010478,2]
[346850765,1735325446109,-500.0,0.00010478,2]
[346850766,1735325446119,-659.61,0.00010478,2]
[346850767,1735325446128,-500.0,0.00010478,2]
[346850768,1735325446137,-500.0,0.00010478,2]
[346850769,1735325446146,-500.0,0.00010478,2]
[346850770,1735325446156,-907.2,0.00010478,2]
[346850771,1735325446166,-500.0,0.00010478,2]
[346850772,1735325446175,-500.0,0.00010478,2]
[346850773,1735325446184,-1597.52,0.00010478,2]
[346850774,1735325446194,-500.0,0.00010478,2]
[346850775,1735325446203,-806.21,0.00010478,2]
[346850776,1735325446212,-500.0,0.00010478,2]
[346850777,1735325446222,-500.0,0.00010478,2]
[346850778,1735325446231,-1142.99,0.00010478,2]
[346850779,1735325446240,-500.0,0.00010478,2]
[346850780,1735325446250,-500.0,0.00010478,2]
[346850781,1735325446259,-500.0,0.00010478,2]
[346850782,1735325446269,-500.0,0.00010478,2]
[346850784,1735325446278,-500.0,0.00010478,2]
[346850786,1735325446291,-942.12,0.00010478,2]
[346850787,1735325446301,-500.0,0.00010478,2]
[346850789,1735325446310,-500.0,0.00010478,2]
[346850790,1735325446319,-500.0,0.00010478,2]
[346850791,1735325446329,-500.0,0.00010478,2]
[346850792,1735325446338,-500.0,0.00010478,2]
[346850793,1735325446347,-500.0,0.00010478,2]
[346850794,1735325446356,-1202.78,0.00010478,2]
[346850795,1735325446366,-534.53,0.00010478,2]
[346850796,1735325446375,-838.08,0.00010478,2]
[346850797,1735325446385,-1037.25,0.00010478,2]
[346850798,1735325446394,-1664.36,0.00010478,2]
[346850799,1735325446403,-500.0,0.00010478,2]
[346850800,1735325446413,-500.0,0.00010478,2]
[346850801,1735325446422,-500.0,0.00010478,2]
[346850802,1735325446432,-500.0,0.00010478,2]
[346850803,1735325446441,-557.44984731,0.00010478,2]
[346850804,1735325446450,-1154.26,0.00010478,2]
[346850805,1735325446460,-968.82,0.00010478,2]
[346850806,1735325446469,-500.0,0.00010478,2]
[346850807,1735325446479,-1333.02,0.00010478,2]
[346850808,1735325446488,-500.0,0.00010478,2]
[346850809,1735325446498,-694.01,0.00010478,2]
[346850810,1735325446507,-613.72,0.00010478,2]
[346850811,1735325446517,-755.46,0.00010478,2]
[346850812,1735325446526,-290.242012,0.00010478,2]
[346850813,1735325446536,-500.0,0.00010478,2]
[346850814,1735325446545,-751.18,0.00010478,2]
[346850815,1735325446555,-500.0,0.00010478,2]
[346850816,1735325446564,-500.0,0.00010478,2]
[346850817,1735325446573,-1094.02,0.00010478,2]
[346850818,1735325446582,-500.0,0.00010478,2]
[346850819,1735325446592,-681.35,0.00010478,2]
[346850820,1735325446602,-513.42444154,0.00010478,2]
[346850821,1735325446611,-1672.66,0.00010478,2]
[346850822,1735325446620,-678.36,0.00010478,2]
[346850823,1735325446630,-645.42,0.00010478,2]
[346850824,1735325446639,-500.0,0.00010478,2]
[346850825,1735325446648,-500.0,0.00010478,2]
[346850826,1735325446658,-500.0,0.00010478,2]
[346850827,1735325446667,-616.09,0.00010478,2]
[346850828,1735325446676,-500.0,0.00010478,2]
[346850829,1735325446686,-675.05,0.00010478,2]
[346850830,1735325446695,-627.08013788,0.00010478,2]
[346850831,1735325446704,-500.0,0.00010478,2]
[346850832,1735325446714,-500.0,0.00010478,2]
[346850833,1735325446723,-500.0,0.00010478,2]
[346850834,1735325446733,-500.0,0.00010478,2]
[346850835,1735325446742,-500.0,0.00010478,2]
[346850836,1735325446751,-500.0,0.00010478,2]
[346850837,1735325446760,-714.82,0.00010478,2]
[346850838,1735325446770,-971.95,0.00010478,2]
[346850839,1735325446779,-500.0,0.00010478,2]
[346850840,1735325446788,-726.5,0.00010478,2]
[346850841,1735325446798,-698.78,0.00010478,2]
[346850842,1735325446807,-500.0,0.00010478,2]
[346850843,1735325446816,-576.58,0.00010478,2]
[346850844,1735325446826,-500.0,0.00010478,2]
[346850845,1735325446835,-728.35,0.00010478,2]
[346850846,1735325446844,-500.0,0.00010478,2]
[346850847,1735325446854,-1067.83,0.00010478,2]
[346850848,1735325446863,-500.0,0.00010478,2]
[346850849,1735325446872,-1648.75,0.00010478,2]
[346850850,1735325446882,-500.0,0.00010478,2]
[346850851,1735325446891,-500.0,0.00010478,2]
[346850852,1735325446900,-500.0,0.00010478,2]
[346850853,1735325446910,-1449.38,0.00010478,2]
[346850854,1735325446920,-3070.07,0.00010478,2]
[346850855,1735325446929,-941.1,0.00010478,2]
[346850856,1735325446939,-500.0,0.00010478,2]
[346850857,1735325446948,-1717.77,0.00010478,2]
[346850858,1735325446958,-667.77,0.00010478,2]
[346850859,1735325446967,-500.0,0.00010478,2]
[346850860,1735325446976,-500.0,0.00010478,2]
[346850861,1735325446986,-500.0,0.00010478,2]
[346850862,1735325446995,-500.0,0.00010478,2]
[346850863,1735325447005,-500.0,0.00010478,2]
[346850864,1735325447014,-500.0,0.00010478,2]
[346850865,1735325447023,-500.0,0.00010478,2]
[346850866,1735325447033,-1201.55,0.00010478,2]
[346850867,1735325447042,-735.48,0.00010478,2]
[346850868,1735325447052,-500.0,0.00010478,2]
[346850869,1735325447062,-17365.53,0.00010478,2]
[346850870,1735325447071,-500.0,0.00010478,2]
[346850871,1735325447081,-654.41,0.00010478,2]
[346850872,1735325447091,-500.0,0.00010478,2]
[346850873,1735325447101,-500.0,0.00010478,2]
[346850874,1735325447111,-500.0,0.00010478,2]
[346850875,1735325447120,-500.0,0.00010478,2]
[346850876,1735325447130,-500.0,0.00010478,2]
[346850877,1735325447139,-500.0,0.00010478,2]
[346850878,1735325447149,-500.0,0.00010478,2]
[346850879,1735325447158,-500.0,0.00010478,2]
[346850880,1735325447167,-500.0,0.00010478,2]
[346850881,1735325447176,-500.0,0.00010478,2]
[346850882,1735325447186,-762.89,0.00010478,2]
[346850883,1735325447195,-500.0,0.00010478,2]
[346850884,1735325447204,-882.94,0.00010478,2]
[346850885,1735325447213,-500.71,0.00010478,2]
[346850886,1735325447223,-688.67,0.00010478,2]
[346850887,1735325447232,-1489.95,0.00010478,2]
[346850888,1735325447242,-1310.53,0.00010478,2]
[346850889,1735325447251,-500.0,0.00010478,2]
[346850890,1735325447261,-500.0,0.00010478,2]
[346850891,1735325447270,-500.0,0.00010478,2]
[346850892,1735325447280,-500.0,0.00010478,2]
[346850893,1735325447294,-500.0,0.00010478,2]
[346850894,1735325447303,-500.0,0.00010478,2]
[346850895,1735325447312,-500.0,0.00010478,2]
[346850896,1735325447324,-500.0,0.00010478,2]
[346850897,1735325447334,-500.0,0.00010478,2]
[346850898,1735325447344,-500.0,0.00010478,2]
[346850899,1735325447353,-500.0,0.00010478,2]
[346850900,1735325447364,-1793.62,0.00010478,2]
[346850901,1735325447373,-1597.31,0.00010478,2]
[346850902,1735325447382,-630.73,0.00010478,2]
[346850903,1735325447392,-1048.23,0.00010478,2]
[346850904,1735325447401,-500.0,0.00010478,2]
[346850905,1735325447411,-590.46,0.00010478,2]
[346850906,1735325447420,-500.0,0.00010478,2]
[346850907,1735325447430,-500.0,0.00010478,2]
[346850908,1735325447439,-500.0,0.00010478,2]
[346850909,1735325447448,-1324.17,0.00010478,2]
[346850910,1735325447635,-500.0,0.00010478,2]
[346850911,1735325447649,-500.0,0.00010478,2]
[346850912,1735325447659,-786.76,0.00010478,2]
[346850913,1735325447668,-500.0,0.00010478,2]
[346850914,1735325447678,-500.0,0.00010478,2]
[346850915,1735325447688,-500.99027561,0.00010479,2]
[346850916,1735325447697,-500.0,0.00010479,2]
[346850917,1735325447707,-500.0,0.00010479,2]
[346850918,1735325447716,-157.014978,0.00010479,2]
[346850919,1735325447726,-500.0,0.00010479,2]
[346850920,1735325447735,-500.0,0.00010479,2]
[346850921,1735325447745,-502.24790379,0.00010479,2]
[346850922,1735325447754,-500.0,0.00010479,2]
[346850923,1735325447763,-502.31484317,0.00010479,2]
[346850924,1735325447773,-326.15996532,0.00010479,2]
[346850925,1735325447782,-500.0,0.00010479,2]
[346850926,1735325447794,-501.72963227,0.00010479,2]
[346850927,1735325447803,-502.92308917,0.00010479,2]
[346850928,1735325447814,-500.55444039,0.00010479,2]
[346850929,1735325447823,-500.35921893,0.00010479,2]
[346850930,1735325447833,-1109.21,0.00010479,2]
[346850931,1735325447842,-500.0,0.00010479,2]
[346850932,1735325447851,-302.51619567,0.00010479,2]
[346850933,1735325447861,-561.92024609,0.00010479,2]
[346850934,1735325447871,-500.93572611,0.00010479,2]
[346850935,1735325447880,-942.21,0.00010479,2]
[346850936,1735325447890,-352.76856041,0.00010479,2]
[346850937,1735325447899,-507.20204533,0.00010479,2]
[346850938,1735325447908,-500.2060757,0.00010479,2]
[346850939,1735325447918,-500.0,0.00010479,2]
[346850940,1735325447927,-500.0,0.00010479,2]
[346850941,1735325447936,-501.41745665,0.00010479,2]
[346850942,1735325447946,-814.2,0.00010479,2]
[346850944,1735325447955,-502.22403176,0.00010479,2]
[346850945,1735325447965,-500.0,0.00010479,2]
[346850946,1735325447974,-500.0,0.00010479,2]
[346850947,1735325447984,-503.48221255,0.00010479,2]
[346850949,1735325447993,-500.97761091,0.00010479,2]
[346850950,1735325448003,-1419.35,0.00010479,2]
[346850951,1735325448012,-501.80840127,0.00010479,2]
[346850953,1735325448021,-502.55719155,0.00010479,2]
[346850954,1735325448031,-501.03105902,0.00010479,2]
[346850955,1735325448042,-500.0,0.00010479,2]
[346850956,1735325448055,-500.0,0.00010479,2]
[346850958,1735325448067,-503.74925369,0.00010479,2]
[346850959,1735325448076,-2616.27,0.00010479,2]
[346850960,1735325448086,-1338.44,0.00010479,2]
[346850961,1735325448095,-1450.94,0.00010479,2]
[346850963,1735325448105,-2475.33,0.00010479,2]
[346850964,1735325448114,-1664.42,0.00010479,2]
[346850965,1735325448124,-1187.3,0.00010479,2]
[346850966,1735325448133,-8539.99,0.00010479,2]
[346850968,1735325448143,-155.940262,0.00010479,2]
[346850969,1735325448153,-154.072404,0.00010479,2]
[346850970,1735325448162,-1048.01075,0.00010479,2]
[346850971,1735325448171,-863.321911,0.00010479,2]
[346850972,1735325448180,-1275.07,0.00010479,2]
[346850973,1735325448190,-500.0,0.00010479,2]
[346850974,1735325448199,-500.0,0.00010479,2]
[346850975,1735325448209,-500.0,0.00010479,2]
[346850976,1735325448218,-1009.12,0.00010479,2]
[346850977,1735325448228,-500.0,0.00010479,2]
[346850978,1735325448238,-697.01,0.00010479,2]
[346850979,1735325448247,-1445.13,0.00010479,2]
[346850980,1735325448257,-724.18,0.00010479,2]
[346850982,1735325448266,-500.0,0.00010479,2]
[346850983,1735325448276,-500.0,0.00010479,2]
[346850984,1735325448289,-1355.85,0.00010479,2]
[346850985,1735325448299,-500.0,0.00010479,2]
[346850986,1735325448308,-863.47,0.00010479,2]
[346850987,1735325448317,-712.77,0.00010479,2]
[346850988,1735325448327,-8682.23,0.00010479,2]
[346850989,1735325448338,-261.691371,0.00010479,2]
[346850990,1735325448347,-160.260586,0.00010479,2]
[346850991,1735325448356,-718.59,0.00010479,2]
[346850992,1735325448366,-500.0,0.00010479,2]
[346850993,1735325448375,-1639.79,0.00010479,2]
[346850994,1735325448384,-500.0,0.00010479,2]
[346850995,1735325448394,-821.57,0.00010479,2]
[346850996,1735325448403,-988.88,0.00010479,2]
[346850997,1735325448412,-757.29,0.00010479,2]
[346850998,1735325448422,-500.0,0.00010479,2]
[346850999,1735325448431,-500.0,0.00010479,2]
[346851000,1735325448440,-500.0,0.00010479,2]
[346851001,1735325448450,-511.80129548,0.00010479,2]
[346851002,1735325448460,-500.0,0.00010479,2]
[346851004,1735325448470,-1217.71,0.00010479,2]
[346851005,1735325448479,-500.0,0.00010479,2]
[346851006,1735325448489,-544.83,0.00010479,2]
[346851007,1735325448499,-1704.76,0.00010479,2]
[346851008,1735325448509,-1366.37,0.00010479,2]
[346851009,1735325448518,-261.691354,0.00010479,2]
[346851010,1735325448528,-903.89,0.00010479,2]
[346851011,1735325448539,-963.59,0.00010479,2]
[346851012,1735325448549,-160.260583,0.00010479,2]
[346851013,1735325448558,-500.0,0.00010479,2]
[346851014,1735325448567,-500.0,0.00010479,2]
[346851015,1735325448577,-1401.04,0.00010479,2]
[346851016,1735325448587,-500.0,0.00010479,2]
[346851017,1735325448596,-1006.05,0.00010479,2]
[346851018,1735325448606,-1973.7,0.00010479,2]
[346851019,1735325448615,-500.0,0.00010479,2]
[346851020,1735325448624,-1777.9,0.00010479,2]
[346851021,1735325448634,-1017.55,0.00010479,2]
[346851022,1735325448643,-704.07,0.00010479,2]
[346851023,1735325448653,-1413.8,0.00010479,2]
[346851024,1735325448662,-500.0,0.00010479,2]
[346851025,1735325448671,-2055.21,0.00010479,2]
[346851026,1735325448681,-500.46,0.00010479,2]
[346851027,1735325448690,-500.0,0.00010479,2]
[346851028,1735325448700,-500.0,0.00010479,2]
[346851029,1735325448709,-1863.9,0.00010479,2]
[346851030,1735325448718,-500.0,0.00010479,2]
[346851031,1735325448728,-615.27,0.00010479,2]
[346851032,1735325448738,-1894.98,0.00010479,2]
[346851033,1735325448748,-2233.42,0.00010479,2]
[346851034,1735325448757,-1717.96,0.00010479,2]
[346851035,1735325448767,-670.02,0.00010479,2]
[346851036,1735325448776,-1363.32,0.00010479,2]
[346851038,1735325448785,-1124.35,0.00010479,2]
[346851039,1735325448794,-1988.38,0.00010479,2]
[346851040,1735325448804,-500.0,0.00010479,2]
[346851041,1735325448814,-7542.56,0.00010479,2]
[346851042,1735325448823,-500.0,0.00010479,2]
[346851043,1735325448833,-619.24,0.00010479,2]
[346851044,1735325448842,-1730.01,0.00010479,2]
[346851045,1735325448852,-2258.86,0.00010479,2]
[346851046,1735325448862,-500.0,0.00010479,2]
[346851047,1735325448872,-2060.9,0.00010479,2]
[346851048,1735325448882,-576.17,0.00010479,2]
[346851049,1735325448891,-1001.7,0.00010479,2]
[346851050,1735325448901,-1677.02,0.00010479,2]
[346851051,1735325448910,-500.0,0.00010479,2]
[346851052,1735325448920,-4599.26,0.00010479,2]
[346851053,1735325448930,-3947.34,0.00010479,2]
[346851054,1735325448939,-2257.05,0.00010479,2]
[346851055,1735325448949,-2589.19,0.00010479,2]